fUST/lending_fUST_20240906
["ID","MTS","AMOUNT","RATE_DAILY","PERIOD"]
[337381689,1725635464754,-500.0,0.00019726,2]
[337381691,1725635464765,-500.0,0.00019726,2]
[337381693,1725635464774,-500.0,0.00019726,2]
[337381695,1725635464784,-500.0,0.00019726,2]
[337381697,1725635464794,-500.0,0.00019726,2]
[337381699,1725635464803,-500.0,0.00019726,2]
[337381701,1725635464813,-500.0,0.00019726,2]
[337381703,1725635464823,-556.09,0.00019726,2]
[337381705,1725635464833,-500.0,0.00019726,2]
[337381707,1725635464843,-500.0,0.00019726,2]
[337381709,1725635464853,-500.0,0.00019726,2]
[337381711,1725635464863,-500.0,0.00019726,2]
[337381713,1725635464872,-169.84652114,0.00019726,2]
[337381715,1725635464882,-651.2,0.00019726,2]
[337381717,1725635464893,-500.0,0.00019726,2]
[337381719,1725635464903,-1202.22,0.00019726,2]
[337381721,1725635464914,-1418.48,0.00019726,2]
[337381723,1725635464925,-500.0,0.00019726,2]
[337381726,1725635464936,-641.19848714,0.00019726,2]
[337381728,1725635464946,-519.47,0.00019726,2]
[337381730,1725635464956,-500.0,0.00019726,2]
[337381732,1725635464971,-500.0,0.00019726,2]
[337381734,1725635464980,-500.0,0.00019726,2]
[337381736,1725635464990,-500.0,0.00019726,2]
[337381738,1725635465000,-500.0,0.00019726,2]
[337381740,1725635465010,-500.0,0.00019726,2]
[337381742,1725635465020,-500.0,0.00019726,2]
[337381744,1725635465030,-500.0,0.00019726,2]
[337381746,1725635465041,-500.0,0.00019726,2]
[337381748,1725635465051,-500.0,0.00019726,2]
[337381750,1725635465062,-500.0,0.00019726,2]
[337381752,1725635465072,-525.77,0.00019726,2]
[337381754,1725635465082,-1034.0,0.00019726,2]
[337381756,1725635465092,-500.0,0.00019726,2]
[337381758,1725635465102,-545.55,0.00019726,2]
[337381760,1725635465112,-500.0,0.00019726,2]
[337381762,1725635465122,-500.0,0.00019726,2]
[337381764,1725635465131,-500.0,0.00019726,2]
[337381766,1725635465142,-505.12987697,0.00019726,2]
[337381768,1725635465153,-500.0,0.00019726,2]
[337381770,1725635465162,-500.0,0.00019726,2]
[337381772,1725635465172,-500.0,0.00019726,2]
[337381774,1725635465182,-500.0,0.00019726,2]
[337381776,1725635465191,-500.0,0.00019726,2]
[337381778,1725635465201,-500.0,0.00019726,2]
[337381780,1725635465210,-500.0,0.00019726,2]
[337381782,1725635465223,-1295.57,0.00019726,2]
[337381784,1725635465233,-500.0,0.00019726,2]
[337381786,1725635465243,-500.0,0.00019726,2]
[337381788,1725635465253,-1571.91,0.00019726,2]
[337381790,1725635465263,-500.0,0.00019726,2]
[337381792,1725635465272,-1237.9,0.00019726,2]
[337381794,1725635465282,-500.0,0.00019726,2]
[337381797,1725635465292,-589.91,0.00019726,2]
[337381799,1725635465302,-500.0,0.00019726,2]
[337381801,1725635465312,-500.0,0.00019726,2]
[337381803,1725635465322,-1264.18,0.00019726,2]
[337381805,1725635465331,-500.0,0.00019726,2]
[337381807,1725635465341,-643.02,0.00019726,2]
[337381809,1725635465351,-500.0,0.00019726,2]
[337381811,1725635465361,-500.0,0.00019726,2]
[337381813,1725635465371,-808.94,0.00019726,2]
[337381815,1725635465380,-500.0,0.00019726,2]
[337381817,1725635465390,-500.0,0.00019726,2]
[337381819,1725635465400,-1186.79,0.00019726,2]
[337381821,1725635465410,-500.0,0.00019726,2]
[337381823,1725635465420,-500.0,0.00019726,2]
[337381825,1725635465430,-500.0,0.00019726,2]
[337381827,1725635465440,-500.0,0.00019726,2]
[337381829,1725635465450,-601.88,0.00019726,2]
[337381831,1725635465460,-500.0,0.00019726,2]
[337381833,1725635465475,-500.0,0.00019726,2]
[337381835,1725635465485,-548.95,0.00019726,2]
[337381837,1725635465495,-500.0,0.00019726,2]
[337381839,1725635465504,-500.0,0.00019726,2]
[337381841,1725635465514,-500.0,0.00019726,2]
[337381843,1725635465523,-587.02,0.00019726,2]
[337381845,1725635465533,-500.0,0.00019726,2]
[337381847,1725635465543,-338.56419716,0.00019726,2]
[337381849,1725635465553,-570.98,0.00019726,2]
[337381851,1725635465563,-500.0,0.00019726,2]
[337381853,1725635465572,-500.0,0.00019726,2]
[337381856,1725635465583,-195.8230372,0.00019726,2]
[337381858,1725635465592,-1624.21,0.00019726,2]
[337381860,1725635465602,-500.0,0.00019726,2]
[337381862,1725635465612,-500.0,0.00019726,2]
[337381864,1725635465621,-959.09,0.00019726,2]
[337381866,1725635465633,-500.0,0.00019726,2]
[337381868,1725635465643,-500.0,0.00019726,2]
[337381870,1725635465653,-529.54,0.00019726,2]
[337381872,1725635465667,-500.0,0.00019726,2]
[337381874,1725635465678,-500.0,0.00019726,2]
[337381876,1725635465687,-500.0,0.00019726,2]
[337381878,1725635465698,-500.0,0.00019726,2]
[337381880,1725635465707,-619.87,0.00019726,2]
[337381883,1725635465730,-500.0,0.00019726,2]
[337381885,1725635465744,-500.0,0.00019726,2]
[337381887,1725635465755,-500.0,0.00019726,2]
[337381889,1725635465764,-1123.51,0.00019726,2]
[337381891,1725635465774,-500.0,0.00019726,2]
[337381893,1725635465784,-500.0,0.00019726,2]
[337381895,1725635465794,-500.0,0.00019726,2]
[337381897,1725635465804,-500.0,0.00019726,2]
[337381899,1725635465814,-500.0,0.00019726,2]
[337381901,1725635465823,-500.0,0.00019726,2]
[337381903,1725635465834,-500.0,0.00019726,2]
[337381905,1725635465843,-500.0,0.00019726,2]
[337381907,1725635465855,-1306.31,0.00019726,2]
[337381909,1725635465865,-500.0,0.00019726,2]
[337381910,1725635465874,-500.0,0.00019726,2]
[337381912,1725635465884,-485.54789274,0.00019726,2]
[337381914,1725635465895,-500.0,0.00019726,2]
[337381916,1725635465904,-500.0,0.00019726,2]
[337381918,1725635465914,-860.27,0.00019726,2]
[337381920,1725635465924,-274.64919959,0.00019726,2]
[337381922,1725635465933,-500.0,0.00019726,2]
[337381924,1725635465943,-500.0,0.00019726,2]
[337381926,1725635465953,-559.04,0.00019726,2]
[337381927,1725635465970,-1022.33,0.00019726,2]
[337381929,1725635465981,-1335.92,0.00019726,2]
[337381931,1725635465991,-500.0,0.00019726,2]
[337381933,1725635466001,-303.54419244,0.00019726,2]
[337381935,1725635466012,-500.0,0.00019726,2]
[337381937,1725635466022,-500.0,0.00019726,2]
[337381939,1725635466033,-500.0,0.00019726,2]
[337381941,1725635466045,-1961.67,0.00019726,2]
[337381943,1725635466056,-899.05,0.00019726,2]
[337381944,1725635466065,-500.0,0.00019726,2]
[337381946,1725635466075,-500.0,0.00019726,2]
[337381948,1725635466085,-500.0,0.00019726,2]
[337381950,1725635466095,-500.0,0.00019726,2]
[337381951,1725635466104,-619.65,0.00019726,2]
[337381953,1725635466114,-500.0,0.00019726,2]
[337381955,1725635466125,-500.0,0.00019726,2]
[337381957,1725635466135,-524.01,0.00019726,2]
[337381959,1725635466144,-298.14710498,0.00019726,2]
[337381961,1725635466154,-500.0,0.00019726,2]
[337381963,1725635466164,-500.0,0.00019726,2]
[337381965,1725635466174,-500.0,0.00019726,2]
[337381967,1725635466184,-500.0,0.00019726,2]
[337381968,1725635466194,-500.0,0.00019726,2]
[337381970,1725635466204,-500.0,0.00019726,2]
[337381972,1725635466219,-500.0,0.00019726,2]
[337381974,1725635466230,-500.0,0.00019726,2]
[337381976,1725635466240,-500.0,0.00019726,2]
[337381978,1725635466252,-1054.39,0.00019726,2]
[337381980,1725635466263,-500.0,0.00019726,2]
[337381982,1725635466273,-1709.92,0.00019726,2]
[337381984,1725635466283,-500.0,0.00019726,2]
[337381985,1725635466292,-608.17,0.00019726,2]
[337381987,1725635466302,-500.0,0.00019726,2]
[337381989,1725635466312,-1974.51,0.00019726,2]
[337381991,1725635466322,-500.0,0.00019726,2]
[337381993,1725635466333,-500.0,0.00019726,2]
[337381995,1725635466342,-500.0,0.00019726,2]
[337381997,1725635466352,-500.0,0.00019726,2]
[337381999,1725635466362,-500.0,0.00019726,2]
[337382000,1725635466371,-500.0,0.00019726,2]
[337382002,1725635466382,-1144.39,0.00019726,2]
[337382004,1725635466391,-500.0,0.00019726,2]
[337382006,1725635466401,-634.3813728,0.00019726,2]
[337382008,1725635466411,-500.0,0.00019726,2]
[337382010,1725635466420,-1367.3,0.00019726,2]
[337382012,1725635466430,-500.0,0.00019726,2]
[337382013,1725635466440,-872.73,0.00019726,2]
[337382015,1725635466450,-500.0,0.00019726,2]
[337382017,1725635466460,-500.0,0.00019726,2]
[337382019,1725635466473,-1320.77,0.00019726,2]
[337382021,1725635466483,-1389.96,0.00019726,2]
[337382023,1725635466493,-500.0,0.00019726,2]
[337382025,1725635466502,-500.0,0.00019726,2]
[337382027,1725635466512,-562.41535323,0.00019726,2]
[337382029,1725635466522,-751.95,0.00019726,2]
[337382030,1725635466532,-500.0,0.00019726,2]
[337382046,1725635466696,-500.0,0.00019726,2]
[337382048,1725635466706,-571.12,0.00019726,2]
[337382049,1725635466718,-511.8044449,0.00019726,2]
[337382051,1725635466727,-500.0,0.00019726,2]
[337382053,1725635466739,-1191.1,0.00019726,2]
[337382055,1725635466748,-500.0,0.00019726,2]
[337382057,1725635466757,-500.0,0.00019726,2]
[337382059,1725635466768,-1742.36,0.00019726,2]
[337382060,1725635466777,-6868.04,0.00019726,2]
[337382062,1725635466786,-500.0,0.00019726,2]
[337382064,1725635466796,-500.0,0.00019726,2]
[337382066,1725635466805,-1225.08,0.00019726,2]
[337382068,1725635466814,-1584.91,0.00019726,2]
[337382069,1725635466824,-515.26,0.00019726,2]
[337382071,1725635466833,-1263.83,0.00019726,2]
[337382073,1725635466843,-1124.13,0.00019726,2]
[337382075,1725635466852,-500.0,0.00019726,2]
[337382077,1725635466862,-669.78,0.00019726,2]
[337382079,1725635466871,-500.0,0.00019726,2]
[337382080,1725635466881,-2764.07,0.00019726,2]
[337382082,1725635466890,-500.0,0.00019726,2]
[337382084,1725635466900,-500.0,0.00019726,2]
[337382086,1725635466910,-1210.88,0.00019726,2]
[337382088,1725635466920,-500.0,0.00019726,2]
[337382090,1725635466929,-1286.07,0.00019726,2]
[337382092,1725635466939,-279.00730067,0.00019726,2]
[337382094,1725635466949,-500.0,0.00019726,2]
[337382095,1725635466959,-5445.49,0.00019726,2]
[337382097,1725635466971,-500.0,0.00019726,2]
[337382099,1725635466980,-646.12,0.00019726,2]
[337382101,1725635466990,-500.0,0.00019726,2]
[337382103,1725635467000,-1576.49,0.00019726,2]
[337382105,1725635467009,-62882.5,0.00019726,2]
[337382107,1725635467018,-1881.02,0.00019726,2]
[337382109,1725635467028,-500.0,0.00019726,2]
[337382111,1725635467040,-829.68,0.00019726,2]
[337382113,1725635467051,-500.0,0.00019726,2]
[337382114,1725635467060,-705.41,0.00019726,2]
[337382116,1725635467070,-500.0,0.00019726,2]
[337382118,1725635467080,-500.0,0.00019726,2]
[337382120,1725635467089,-2941.86,0.00019726,2]
[337382122,1725635467099,-518.81,0.00019726,2]
[337382124,1725635467111,-602.59,0.00019726,2]
[337382126,1725635467122,-1223.4,0.00019726,2]
[337382128,1725635467134,-500.0,0.00019726,2]
[337382130,1725635467146,-1815.08,0.00019726,2]
[337382132,1725635467157,-500.0,0.00019726,2]
[337382134,1725635467169,-1109.4,0.00019726,2]
[337382136,1725635467178,-500.0,0.00019726,2]
[337382138,1725635467188,-500.0,0.00019726,2]
[337382139,1725635467197,-850.23,0.00019726,2]
[337382141,1725635467207,-1302.53,0.00019726,2]
[337382143,1725635467220,-1759.32,0.00019726,2]
[337382145,1725635467229,-891.12,0.00019726,2]
[337382147,1725635467239,-1750.7,0.00019726,2]
[337382149,1725635467249,-500.0,0.00019726,2]
[337382151,1725635467259,-500.0,0.00019726,2]
[337382153,1725635467269,-1759.01,0.00019726,2]
[337382154,1725635467278,-766.52,0.00019726,2]
[337382156,1725635467287,-825.05,0.00019726,2]
[337382158,1725635467297,-1824.85,0.00019726,2]
[337382160,1725635467307,-500.0,0.00019726,2]
[337382162,1725635467316,-500.0,0.00019726,2]
[337382164,1725635467329,-703.18,0.00019726,2]
[337382166,1725635467339,-658.08,0.00019726,2]
[337382168,1725635467349,-507.94,0.00019726,2]
[337382170,1725635467359,-686.01,0.00019726,2]
[337382172,1725635467369,-500.0,0.00019726,2]
[337382174,1725635467379,-500.0,0.00019726,2]
[337382176,1725635467389,-659.89,0.00019726,2]
[337382178,1725635467399,-1870.38,0.00019726,2]
[337382180,1725635467408,-500.0,0.00019726,2]
[337382182,1725635467418,-1087.66,0.00019726,2]
[337382183,1725635467428,-2189.64,0.00019726,2]
[337382185,1725635467439,-500.0,0.00019726,2]
[337382187,1725635467449,-500.0,0.00019726,2]
[337382189,1725635467459,-500.0,0.00019726,2]
[337382191,1725635467472,-930.47,0.00019726,2]
[337382193,1725635467484,-500.0,0.00019726,2]
[337382195,1725635467493,-1407.25,0.00019726,2]
[337382197,1725635467504,-1301.2,0.00019726,2]
[337382199,1725635467513,-500.0,0.00019726,2]
[337382201,1725635467523,-500.0,0.00019726,2]
[337382203,1725635467532,-500.0,0.00019726,2]
[337382205,1725635467542,-500.0,0.00019726,2]
[337382207,1725635467552,-1056.08,0.00019726,2]
[337382208,1725635467562,-500.0,0.00019726,2]
[337382210,1725635467572,-500.0,0.00019726,2]
[337382213,1725635467583,-500.0,0.00019726,2]
[337382215,1725635467596,-500.0,0.00019726,2]
[337382217,1725635467606,-3042.96,0.00019726,2]
[337382218,1725635467615,-2093.22,0.00019726,2]
[337382220,1725635467625,-1342.45,0.00019726,2]
[337382222,1725635467635,-1422.63,0.00019726,2]
[337382224,1725635467644,-500.0,0.00019726,2]
[337382226,1725635467654,-500.0,0.00019726,2]
[337382228,1725635467669,-500.38817659,0.00019726,2]
[337382230,1725635467679,-500.0,0.00019726,2]
[337382232,1725635467689,-500.0,0.00019726,2]
[337382234,1725635467699,-2852.83,0.00019726,2]
[337382236,1725635467708,-500.0,0.00019726,2]
[337382238,1725635467723,-1050.5,0.00019726,2]
[337382240,1725635467733,-500.0,0.00019726,2]
[337382241,1725635467743,-603.02,0.00019726,2]
[337382243,1725635467753,-500.0,0.00019726,2]
[337382245,1725635467762,-825.83,0.00019726,2]
[337382247,1725635467771,-735.62,0.00019726,2]
[337382249,1725635467781,-500.0,0.00019726,2]
[337382251,1725635467791,-500.0,0.00019726,2]
[337382253,1725635467801,-500.0,0.00019726,2]
[337382254,1725635467810,-25870.76,0.00019726,2]
[337382256,1725635467820,-500.0,0.00019726,2]
[337382258,1725635467830,-2036.65,0.00019726,2]
[337382260,1725635467841,-1054.12,0.00019726,2]
[337382262,1725635467852,-585.32,0.00019726,2]
[337382264,1725635467861,-1152.21,0.00019726,2]
[337382266,1725635467871,-500.0,0.00019726,2]
[337382268,1725635467881,-2167.46,0.00019726,2]
[337382270,1725635467891,-500.0,0.00019726,2]
[337382271,1725635467901,-500.0,0.00019726,2]
[337382273,1725635467910,-500.0,0.00019726,2]
[337382275,1725635467921,-797.57,0.00019726,2]
[337382277,1725635467931,-2005.74,0.00019726,2]
[337382279,1725635467942,-500.0,0.00019726,2]
[337382281,1725635467952,-500.0,0.00019726,2]
[337382283,1725635467961,-506.39191235,0.00019726,2]
[337382285,1725635467974,-845.93,0.00019726,2]
[337382286,1725635467983,-500.0,0.00019726,2]
[337382288,1725635467993,-210.66517997,0.00019726,2]
[337382290,1725635468003,-712.12,0.00019726,2]
[337382292,1725635468012,-500.0,0.00019726,2]
[337382294,1725635468023,-500.0,0.00019726,2]
[337382296,1725635468034,-500.0,0.00019726,2]
[337382298,1725635468048,-2282.79,0.00019726,2]
[337382300,1725635468061,-1796.13,0.00019726,2]
[337382302,1725635468071,-500.0,0.00019726,2]
[337382304,1725635468081,-500.0,0.00019726,2]
[337382306,1725635468091,-1903.93,0.00019726,2]
[337382308,1725635468102,-500.0,0.00019726,2]
[337382310,1725635468115,-2250.0,0.00019726,2]
[337382312,1725635468126,-500.0,0.00019726,2]
[337382314,1725635468138,-1013.16,0.00019726,2]
[337382316,1725635468148,-599.93,0.00019726,2]
[337382318,1725635468160,-500.0,0.00019726,2]
[337382320,1725635468170,-530.72,0.00019726,2]
[337382322,1725635468179,-500.0,0.00019726,2]
[337382323,1725635468189,-2136.09,0.00019726,2]
[337382325,1725635468199,-500.0,0.00019726,2]
[337382327,1725635468209,-519.57,0.00019726,2]
[337382329,1725635468223,-61494.33,0.00019726,2]
[337382331,1725635468233,-1116.46,0.00019726,2]
[337382333,1725635468243,-500.0,0.00019726,2]
[337382335,1725635468253,-500.0,0.00019726,2]
[337382337,1725635468264,-47567.92,0.00019726,2]
[337382338,1725635468274,-500.0,0.00019726,2]
[337382340,1725635468284,-991.68,0.00019726,2]
[337382342,1725635468295,-208.1061349,0.000198,2]
[337382344,1725635468305,-1075.60899912,0.00019856,2]
[337382346,1725635468315,-500.0,0.0002,2]
[337382348,1725635468324,-500.0,0.0002,2]
[337382350,1725635468334,-500.0,0.0002,2]
[337382352,1725635468345,-1000.0,0.0002,20]
[337382354,1725635468354,-500.0,0.0002,2]
[337382356,1725635468364,-500.0,0.0002,2]
[337382357,1725635468374,-500.0,0.0002,2]
[337382359,1725635468383,-500.0,0.0002,2]
[337382361,1725635468393,-500.0,0.0002,2]
[337382363,1725635468402,-500.0,0.0002,2]
[337382365,1725635468411,-500.0,0.0002,2]
[337382367,1725635468420,-500.0,0.0002,2]
[337382369,1725635468431,-561.93126478,0.0002,2]
[337382371,1725635468441,-500.0,0.0002,2]
[337382372,1725635468451,-500.0,0.0002,2]
[337382374,1725635468461,-500.0,0.0002,2]
[337382376,1725635468478,-925.3,0.0002,2]
[337382378,1725635468488,-500.0,0.0002,2]
[337382380,1725635468498,-531.15060596,0.0002,2]
[337382382,1725635468508,-500.0,0.0002,2]
[337382384,1725635468518,-500.0,0.0002,2]
[337382385,1725635468529,-500.0,0.0002,2]
[337382387,1725635468540,-259.92983002,0.0002,2]
[337382389,1725635468550,-923.18,0.0002,2]
[337382391,1725635468560,-500.0,0.0002,2]
[337382393,1725635468571,-500.0,0.0002,2]
[337382395,1725635468581,-500.0,0.0002,2]
[337382397,1725635468590,-500.0,0.0002,2]
[337382399,1725635468600,-500.0,0.0002,2]
[337382400,1725635468610,-500.0,0.0002,2]
[337382402,1725635468622,-500.0,0.0002,2]
[337382404,1725635468632,-500.0,0.0002,2]
[337382406,1725635468643,-500.0,0.0002,2]
[337382408,1725635468659,-500.0,0.0002,2]
[337382410,1725635468669,-500.0,0.0002,2]
[337382412,1725635468679,-556.09,0.0002,2]
[337382414,1725635468690,-500.0,0.0002,2]
[337382416,1725635468702,-500.0,0.0002,2]
[337382418,1725635468712,-500.0,0.0002,2]
[337382421,1725635468729,-500.0,0.0002,2]
[337382422,1725635468741,-651.2,0.0002,2]
[337382425,1725635468754,-500.0,0.0002,2]
[337382427,1725635468767,-1202.22,0.0002,2]
[337382429,1725635468776,-1418.48,0.0002,2]
[337382430,1725635468786,-500.0,0.0002,2]
[337382432,1725635468797,-519.47,0.0002,2]
[337382434,1725635468806,-562.06905482,0.0002,2]
[337382436,1725635468815,-500.0,0.0002,2]
[337382438,1725635468824,-500.0,0.0002,2]
[337382440,1725635468834,-500.0,0.0002,2]
[337382442,1725635468844,-500.0,0.0002,2]
[337382444,1725635468854,-500.0,0.0002,2]
[337382445,1725635468863,-500.0,0.0002,2]
[337382447,1725635468873,-500.0,0.0002,2]
[337382449,1725635468883,-500.0,0.0002,2]
[337382451,1725635468893,-500.0,0.0002,2]
[337382453,1725635468903,-500.0,0.0002,2]
[337382455,1725635468912,-525.77,0.0002,2]
[337382457,1725635468922,-1034.0,0.0002,2]
[337382458,1725635468931,-500.0,0.0002,2]
[337382460,1725635468940,-545.55,0.0002,2]
[337382462,1725635468950,-500.0,0.0002,2]
[337382464,1725635468960,-500.0,0.0002,2]
[337382466,1725635468974,-500.0,0.0002,2]
[337382468,1725635468984,-500.0,0.0002,2]
[337382470,1725635468993,-642.04799158,0.0002,2]
[337382471,1725635469004,-500.0,0.0002,2]
[337382472,1725635469014,-500.0,0.0002,2]
[337382473,1725635469023,-500.0,0.0002,2]
[337382474,1725635469033,-512.45194907,0.0002,2]
[337382475,1725635469043,-500.0,0.0002,2]
[337382476,1725635469052,-1295.57,0.0002,2]
[337382477,1725635469062,-500.0,0.0002,2]
[337382478,1725635469072,-500.0,0.0002,2]
[337382479,1725635469082,-1571.91,0.0002,2]
[337382480,1725635469092,-500.0,0.0002,2]
[337382481,1725635469102,-1237.9,0.0002,2]
[337382482,1725635469165,-500.0,0.0002,2]
[337382483,1725635469175,-589.91,0.0002,2]
[337382484,1725635469185,-500.0,0.0002,2]
[337382485,1725635469194,-500.0,0.0002,2]
[337382486,1725635469204,-1264.18,0.0002,2]
[337382487,1725635469214,-500.0,0.0002,2]
[337382488,1725635469228,-643.02,0.0002,2]
[337382489,1725635469238,-500.0,0.0002,2]
[337382490,1725635469249,-500.0,0.0002,2]
[337382491,1725635469258,-808.94,0.0002,2]
[337382492,1725635469268,-500.0,0.0002,2]
[337382493,1725635469278,-549.8286483,0.0002,2]
[337382494,1725635469287,-1186.79,0.0002,2]
[337382495,1725635469296,-500.0,0.0002,2]
[337382496,1725635469305,-500.0,0.0002,2]
[337382497,1725635469315,-500.0,0.0002,2]
[337382498,1725635469324,-500.0,0.0002,2]
[337382499,1725635469334,-601.88,0.0002,2]
[337382500,1725635469343,-500.0,0.0002,2]
[337382501,1725635469354,-500.0,0.0002,2]
[337382502,1725635469363,-548.95,0.0002,2]
[337382503,1725635469373,-500.0,0.0002,2]
[337382504,1725635469382,-500.0,0.0002,2]
[337382505,1725635469392,-500.0,0.0002,2]
[337382507,1725635469401,-587.02,0.0002,2]
[337382508,1725635469411,-500.0,0.0002,2]
[337382510,1725635469420,-570.98,0.0002,2]
[337382512,1725635469430,-500.0,0.0002,2]
[337382514,1725635469440,-500.0,0.0002,2]
[337382516,1725635469449,-1624.21,0.0002,2]
[337382518,1725635469458,-500.0,0.0002,2]
[337382520,1725635469469,-500.0,0.0002,2]
[337382522,1725635469479,-959.09,0.0002,2]
[337382524,1725635469488,-500.0,0.0002,2]
[337382526,1725635469498,-500.0,0.0002,2]
[337382528,1725635469508,-529.54,0.0002,2]
[337382530,1725635469517,-500.0,0.0002,2]
[337382532,1725635469527,-500.0,0.0002,2]
[337382534,1725635469536,-500.0,0.0002,2]
[337382535,1725635469546,-181.26722629,0.0002,2]
[337382538,1725635469557,-619.87,0.0002,2]
[337382540,1725635469567,-500.0,0.0002,2]
[337382542,1725635469578,-500.0,0.0002,2]
[337382544,1725635469589,-500.0,0.0002,2]
[337382546,1725635469599,-1123.51,0.0002,2]
[337382548,1725635469610,-166.70939272,0.0002,2]
[337382550,1725635469620,-500.0,0.0002,2]
[337382552,1725635469629,-500.0,0.0002,2]
[337382554,1725635469638,-500.0,0.0002,2]
[337382556,1725635469648,-500.0,0.0002,2]
[337382558,1725635469658,-500.0,0.0002,2]
[337382560,1725635469670,-500.0,0.0002,2]
[337382562,1725635469680,-500.0,0.0002,2]
[337382565,1725635469690,-1306.31,0.0002,2]
[337382567,1725635469700,-500.0,0.0002,2]
[337382569,1725635469711,-500.0,0.0002,2]
[337382570,1725635469723,-500.0,0.0002,2]
[337382572,1725635469733,-500.0,0.0002,2]
[337382575,1725635469746,-860.27,0.0002,2]
[337382577,1725635469755,-571.74013912,0.0002,2]
[337382579,1725635469765,-500.0,0.0002,2]
[337382581,1725635469774,-559.04,0.0002,2]
[337382583,1725635469784,-1022.33,0.0002,2]
[337382585,1725635469794,-1335.92,0.0002,2]
[337382587,1725635469803,-500.0,0.0002,2]
[337382589,1725635469812,-500.0,0.0002,2]
[337382591,1725635469823,-500.0,0.0002,2]
[337382593,1725635469832,-500.0,0.0002,2]
[337382595,1725635469843,-1961.67,0.0002,2]
[337382597,1725635469854,-899.05,0.0002,2]
[337382599,1725635469865,-238.0867747,0.0002,2]
[337382601,1725635469875,-500.0,0.0002,2]
[337382603,1725635469885,-1802.118153,0.0002,2]
[337382605,1725635469894,-500.0,0.0002,2]
[337382607,1725635469903,-251.42914716,0.0002,2]
[337382609,1725635469912,-619.65,0.0002,2]
[337382611,1725635469922,-500.0,0.0002,2]
[337382613,1725635469931,-1802.118153,0.0002,2]
[337382615,1725635469940,-500.0,0.0002,2]
[337382617,1725635469950,-524.01,0.0002,2]
[337382618,1725635469959,-500.0,0.0002,2]
[337382621,1725635469971,-500.0,0.0002,2]
[337382622,1725635469980,-500.0,0.0002,2]
[337382624,1725635469989,-151.0,0.0002,2]
[337382627,1725635470000,-500.0,0.0002,2]
[337382629,1725635470010,-500.0,0.0002,2]
[337382631,1725635470020,-350.27003836,0.0002,2]
[337382632,1725635470030,-151.0,0.0002,2]
[337382634,1725635470042,-500.0,0.0002,2]
[337382637,1725635470054,-514.5965296,0.0002,2]
[337382639,1725635470064,-500.0,0.0002,2]